bitfinex-derivatives/quotes_ETHF0:USTF0_20240901
["timestamp","ask_amount","ask_price","bid_price","bid_amount"]
[1725215456537,0.40121,2492.6,2492.0,3.21382011]
[1725215456740,4.3456271,2492.6,2492.0,3.21382011]
[1725215456945,0.40122,2492.5,2492.0,3.21382011]
[1725215457446,4.40842474,2492.4,2492.0,3.21382011]
[1725215457656,0.00602011,2492.7,2492.0,3.21382011]
[1725215457837,0.40124,2492.4,2492.1,0.3851]
[1725215458036,4.48574693,2492.5,2492.0,3.21382011]
[1725215458037,0.40127,2492.2,2492.0,3.21382011]
[1725215458237,4.40842474,2492.3,2492.0,3.21382011]
[1725215458437,0.40126,2492.3,2492.0,3.21382011]
[1725215458642,4.17702026,2492.6,2492.0,3.21382011]
[1725215458841,0.40722011,2492.7,2492.0,3.21382011]
[1725215459053,0.40121,2492.6,2492.0,3.21382011]
[1725215459234,4.49471849,2492.6,2492.0,3.21382011]
[1725215459442,0.00602011,2492.7,2492.3,3.2078]
[1725215459841,4.57871237,2492.6,2492.3,3.2078]
[1725215460252,0.00602011,2492.7,2492.4,4.012]
[1725215460444,0.40122,2492.5,2492.2,3.2078]
[1725215460643,4.57871237,2492.6,2492.2,3.2078]
[1725215460947,0.40125,2492.3,2492.2,3.2078]
[1725215461334,4.79841287,2492.3,2492.2,3.2078]
[1725215462251,0.00602011,2492.7,2492.2,7.2206]
[1725215462441,0.40121,2492.6,2492.2,3.2078]
[1725215462752,4.35656282,2492.6,2492.2,3.2078]
[1725215463345,0.00602011,2492.7,2492.5,3.2078]
[1725215463556,4.2151,2493.8,2492.6,0.3783]
[1725215463749,4.2151,2493.8,2492.8,3.2078]
[1725215463945,4.37330561,2493.4,2493.1,3.2078]
[1725215464248,0.3692,2493.9,2493.1,3.2078]
[1725215464450,0.40106,2493.6,2493.3,0.00602011]
[1725215464755,0.00602011,2493.7,2493.3,0.00602011]
[1725215464756,0.00602011,2493.7,2493.4,3.2078]
[1725215464952,0.00602011,2493.7,2493.4,7.2182]
[1725215465147,0.00602011,2493.7,2493.5,4.0104]
[1725215465451,0.3551,2494.6,2493.6,4.0104]
[1725215465452,0.40093,2494.4,2493.6,4.0104]
[1725215465650,0.19915545,2494.6,2493.8,3.2078]
[1725215465853,4.34708004,2494.3,2493.5,3.2078]
[1725215466061,0.40098,2494.0,2493.5,3.2078]
[1725215466357,4.34708004,2493.9,2493.5,3.2078]
[1725215466744,0.00591572,2494.0,2493.5,7.2182]
[1725215466947,0.40689572,2494.0,2493.5,3.2078]
[1725215467155,0.00591572,2494.0,2493.5,3.2078]
[1725215468249,4.43566572,2493.9,2493.5,3.2078]
[1725215468560,3.2078,2493.6,2492.0,3.2078]
[1725215468851,0.40116,2492.9,2492.0,3.2078]
[1725215469257,4.43566572,2492.8,2492.0,3.2078]
[1725215469556,3.85,2493.2,2492.0,3.2078]
[1725215469557,0.40119,2492.7,2492.0,3.2078]
[1725215469759,0.00602011,2492.6,2492.2,0.00602011]
[1725215469953,4.20001263,2492.6,2492.2,0.00602011]
[1725215470155,0.00602011,2492.6,2492.2,0.00602011]
[1725215471655,0.00602011,2492.6,2492.3,3.2078]
[1725215472051,0.00602011,2492.6,2492.2,0.00602011]
[1725215472052,4.85769732,2492.5,2492.2,0.00602011]
[1725215472250,0.40124,2492.4,2492.2,0.00602011]
[1725215472448,8.46847732,2492.5,2492.2,0.00602011]
[1725215472755,4.85772732,2492.3,2492.2,0.00602011]
[1725215472957,0.40125,2492.3,2492.2,0.00602011]
[1725215473154,8.724815,2492.3,2492.2,0.00602011]
[1725215474857,4.712015,2492.3,2492.2,0.00602011]
[1725215475957,8.724815,2492.3,2492.2,0.00602011]
[1725215476159,8.724815,2492.3,2492.2,1.1e-07]
[1725215476364,21.782615,2492.3,2492.2,1.1e-07]
[1725215476856,18.574815,2492.3,2492.2,1.1e-07]
[1725215477052,12.574815,2492.3,2492.2,1.1e-07]
[1725215477855,21.782615,2492.3,2492.2,1.1e-07]
[1725215478057,4.310765,2492.3,2492.2,1.1e-07]
[1725215478270,0.40123,2492.5,2492.2,1.1e-07]
[1725215478572,0.40125,2492.4,2492.2,1.1e-07]
[1725215478865,4.48673425,2492.5,2492.2,1.1e-07]
[1725215478866,4.88796425,2492.5,2492.2,1.1e-07]
[1725215479064,4.48673425,2492.5,2492.2,1.1e-07]
[1725215479457,4.88796425,2492.5,2492.2,1.1e-07]
[1725215480457,0.40125,2492.3,2492.2,1.1e-07]
[1725215480662,0.40124,2492.4,2492.2,1.1e-07]
[1725215480964,4.48673425,2492.5,2492.2,1.1e-07]
[1725215480965,4.28613862,2492.3,2492.2,1.1e-07]
[1725215481367,0.40122,2492.5,2492.2,1.1e-07]
[1725215481368,4.28613862,2492.4,2492.2,1.1e-07]
[1725215481567,0.40125,2492.3,2492.2,1.1e-07]
[1725215481869,16.12072137,2492.3,2492.2,1.1e-07]
[1725215482060,23.48205137,2492.3,2492.2,1.1e-07]
[1725215482261,24.48518137,2492.3,2492.2,1.1e-07]
[1725215483159,28.00299932,2492.3,2492.2,1.1e-07]
[1725215483359,24.88658137,2492.3,2492.2,1.1e-07]
[1725215483759,0.40146,2491.0,2490.9,3.2078]
[1725215484266,0.40152,2490.7,2490.6,3.2078]
[1725215484666,0.40157,2490.3,2490.2,3.5912]
[1725215484893,0.40157,2490.3,2490.2,3.2078]
[1725215485168,4.9264594,2490.3,2490.2,3.2078]
[1725215486362,4.5248894,2490.3,2490.0,0.00602011]
[1725215486869,0.40161,2490.1,2490.0,0.00602011]
[1725215487069,1.40563,2490.1,2490.0,0.00602011]
[1725215487277,0.40165,2489.8,2489.7,3.2078]
[1725215487466,0.4017,2489.5,2489.4,0.3536]
[1725215487667,0.40172,2489.4,2489.1,0.3577]
[1725215487870,4.5390373,2489.5,2489.1,0.3577]
[1725215488172,4.49091809,2489.8,2489.0,3.2078]
[1725215488364,0.00602011,2489.6,2489.2,0.00602011]
[1725215488675,4.49091809,2489.5,2489.2,0.00602011]
[1725215489174,4.89262809,2489.5,2489.2,0.00602011]
[1725215490167,4.49091809,2489.5,2489.2,0.00602011]
[1725215491070,0.40173,2489.3,2489.2,0.00602011]
[1725215491470,8.70885111,2489.3,2489.2,0.00602011]
[1725215491669,4.28952111,2489.3,2489.2,0.00602011]
[1725215493765,0.00602011,2489.6,2489.2,4.02362011]
[1725215493971,0.00602011,2489.6,2489.2,0.00602011]
[1725215494180,4.41518357,2489.5,2489.2,0.00602011]
[1725215494777,0.40173,2489.3,2489.2,0.00602011]
[1725215494981,0.40173,2489.4,2489.2,0.00602011]
[1725215495281,4.65466494,2489.3,2489.2,0.00602011]
[1725215495481,0.40172,2489.4,2489.2,0.00602011]
[1725215495778,4.65466494,2489.3,2489.2,0.00602011]
[1725215496368,0.00602011,2489.6,2489.2,13.23142011]
[1725215496579,0.00602011,2489.6,2489.2,7.23062011]
[1725215498176,0.40173,2489.4,2489.2,3.21382011]
[1725215498370,4.19272671,2489.5,2489.2,3.21382011]
[1725215498572,4.19272671,2489.3,2489.2,3.21382011]
[1725215498880,0.40171,2489.5,2489.2,3.21382011]
[1725215498881,4.19272671,2489.5,2489.2,3.21382011]
[1725215499176,0.00602011,2489.6,2489.2,3.21382011]
[1725215499376,0.40173,2489.3,2489.2,3.21382011]
[1725215499894,4.46299503,2489.3,2489.2,0.00602011]
[1725215500378,0.40173,2489.4,2489.2,0.00602011]
[1725215500576,4.38444087,2489.3,2489.2,0.00602011]
[1725215500783,4.78617087,2489.3,2489.2,0.00602011]
[1725215501175,4.41933,2489.3,2489.2,0.00602011]
[1725215501374,0.4018,2488.9,2488.5,3.2078]
[1725215501570,0.40182,2488.8,2488.5,3.2078]
[1725215501778,4.71546863,2488.8,2488.5,3.2078]
[1725215502372,0.40184,2488.7,2488.5,3.2078]
[1725215502890,1.00444,2489.1,2488.5,3.2078]
[1725215502891,4.67765223,2488.6,2488.5,3.2078]
[1725215503281,0.40185,2488.6,2488.5,3.2078]
[1725215503584,4.80644583,2488.6,2488.5,3.2078]
[1725215503775,4.40459583,2488.6,2488.5,3.2078]
[1725215504583,4.40890942,2488.6,2488.5,3.2078]
[1725215504975,0.40185,2488.6,2488.5,3.2078]
[1725215505180,0.40186,2488.5,2488.4,0.00602011]
[1725215505571,8.85095058,2488.5,2488.4,0.00602011]
[1725215506380,0.20303027,2488.4,2488.0,3.2078]
[1725215506578,0.40193,2488.1,2488.0,3.2078]
[1725215506883,4.69125102,2488.1,2488.0,3.2078]
[1725215508099,0.40196,2487.9,2487.8,0.00411776]
[1725215508475,4.51334636,2487.9,2487.8,0.00411776]
[1725215508677,4.51334636,2487.9,2487.8,4.02331776]
[1725215509286,0.20215136,2488.3,2487.8,4.02331776]
[1725215509583,4.18587336,2488.2,2487.8,0.00411776]
[1725215510186,0.40196,2487.9,2487.8,0.00411776]
[1725215510484,4.86975408,2487.9,2487.8,0.00411776]
[1725215510684,4.86975408,2487.9,2487.2,0.3823]
[1725215510685,0.40201,2487.7,2487.2,0.3823]
[1725215510889,0.40201,2487.6,2487.2,0.3823]
[1725215511189,4.54744918,2487.6,2487.2,0.3823]
[1725215511486,0.402,2487.7,2487.2,0.3823]
[1725215511892,4.54744918,2487.6,2487.2,0.3823]
[1725215512195,3.99183996,2487.8,2487.4,3.2078]
[1725215512383,3.37466187,2487.8,2487.7,3.60979]
[1725215512690,0.00602011,2488.3,2487.7,3.2078]
[1725215512892,0.00602011,2488.3,2488.0,3.2078]
[1725215513084,4.24953391,2488.2,2487.7,3.2078]
[1725215513681,4.24953391,2488.2,2488.0,3.2078]
[1725215513885,0.00602011,2488.3,2488.0,3.2078]
[1725215514086,0.00602011,2488.3,2488.1,0.3893]
[1725215514388,0.00602011,2488.3,2488.2,4.0192]
[1725215514589,0.00602011,2488.3,2488.1,0.3893]
[1725215514899,4.26927545,2488.2,2488.0,3.2078]
[1725215515089,4.67720556,2488.3,2488.0,3.2078]
[1725215515294,4.5585704,2488.1,2488.0,3.2078]
[1725215515590,4.9604804,2488.2,2488.0,3.2078]
[1725215515786,0.40792011,2488.3,2487.7,3.2078]
[1725215515995,0.00602011,2488.3,2488.0,3.2078]
[1725215516477,0.00602011,2488.3,2488.0,7.227]
[1725215518983,0.00602011,2488.3,2488.1,4.0192]
[1725215519294,1.20739108,2489.8,2488.2,4.0192]
[1725215519295,0.4018,2488.9,2488.2,4.0192]
[1725215519591,0.4018,2488.9,2488.1,13.84709949]
[1725215519592,4.85398903,2488.9,2488.7,3.2078]
[1725215519986,0.40181,2488.9,2488.7,3.2078]
[1725215520195,4.19069308,2488.8,2488.7,3.2078]
[1725215520598,0.40184,2488.7,2488.5,0.00602011]
[1725215520890,3.94958667,2488.6,2488.5,0.00602011]
[1725215521287,4.60939029,2488.7,2488.5,0.00602011]
[1725215521483,4.20755029,2488.6,2488.5,0.00602011]
[1725215521998,4.42025,2488.6,2488.5,0.00602011]
[1725215522296,8.68431951,2488.6,2488.5,0.00602011]
[1725215522509,8.28246951,2488.6,2488.5,0.00602011]
[1725215522685,4.26406951,2488.6,2488.5,4.02442011]
[1725215522891,0.00602011,2489.0,2488.5,4.02442011]
[1725215523092,0.40181,2488.9,2488.5,0.00602011]
[1725215523292,0.40185,2488.6,2488.5,0.00602011]
[1725215523595,4.47877723,2488.6,2488.5,0.00602011]
[1725215523798,4.47877723,2488.6,2488.5,4.02442011]
[1725215524095,0.00602011,2489.0,2488.5,4.02442011]
[1725215524414,4.60869286,2488.9,2488.7,3.2078]
[1725215524698,0.00602011,2489.0,2488.8,0.40182]
[1725215524894,0.00602011,2489.0,2488.8,0.77242]
[1725215525200,0.00602011,2489.0,2488.9,4.4194]
[1725215525691,0.00602011,2489.0,2488.9,10.4194]
[1725215526895,5.60104,2490.1,2489.0,0.40177]
[1725215527101,5.60104,2490.1,2489.5,3.2078]
[1725215527102,4.597,2490.1,2489.5,3.2078]
[1725215527397,4.56569664,2489.6,2489.5,3.2078]
[1725215527596,4.56569664,2490.0,2489.5,3.2078]
[1725215527797,0.00602011,2490.0,2489.8,3.2078]
[1725215527988,4.47459612,2490.0,2489.8,3.2078]
[1725215528389,0.00602011,2490.0,2489.8,3.2078]
[1725215528999,0.00602011,2490.0,2489.8,7.2238]
[1725215529597,4.60615995,2489.9,2488.8,3.85]
[1725215529792,4.60615995,2489.9,2489.8,3.2078]
[1725215529998,5.00779995,2489.9,2489.8,3.2078]
[1725215530688,0.40168,2489.7,2489.2,3.2078]
[1725215530888,8.82115223,2489.9,2488.9,4.9335]
[1725215530889,5.20005223,2489.9,2489.6,3.2078]
[1725215531098,2.61085073,2489.8,2489.1,3.2078]
[1725215531297,7.21883832,2489.8,2489.1,3.2078]
[1725215531603,0.40169,2489.6,2489.1,3.2078]
[1725215531896,4.60798759,2489.5,2489.4,3.2078]
[1725215532304,0.00602011,2490.0,2489.4,3.2078]
[1725215532305,2.61687084,2490.0,2489.4,13.2246]
[1725215532490,2.61687084,2490.0,2488.9,0.7435]
[1725215532491,0.00602011,2490.0,2489.6,3.2078]
[1725215532699,4.28867461,2489.9,2489.6,3.2078]
[1725215533195,4.28867461,2489.9,2489.6,3.60948]
[1725215533392,4.28867461,2489.9,2489.6,3.2078]
[1725215534298,4.69032461,2489.9,2489.6,3.2078]
[1725215534505,0.40166,2489.8,2489.6,3.2078]
[1725215534803,4.38706238,2489.7,2489.6,3.2078]
[1725215535191,0.00602011,2490.0,2489.6,3.2078]
[1725215535192,4.55121657,2489.9,2489.6,7.2246]
[1725215535405,0.00602011,2490.0,2489.6,3.9516]
[1725215535601,0.00602011,2490.0,2489.9,3.2078]
[1725215536007,0.00602011,2490.0,2489.9,7.2238]
[1725215537110,0.00602011,2490.0,2489.9,13.62544]
[1725215537811,2.61085073,2490.9,2490.3,0.40157]
[1725215538004,0.0202,2491.0,2490.6,3.2078]
[1725215538203,4.34736838,2490.8,2490.6,3.2078]
[1725215538398,4.34736838,2490.9,2490.6,3.2078]
[1725215538601,0.42167,2491.0,2490.6,3.2078]
[1725215538801,0.42769011,2491.0,2490.6,3.21382011]
[1725215539005,4.34736838,2490.9,2490.6,3.21382011]
[1725215539417,0.40151,2490.7,2490.6,3.21382011]
[1725215539611,0.4015,2490.8,2490.6,3.21382011]
[1725215539808,4.27374387,2490.7,2490.6,3.21382011]
[1725215540008,0.02622011,2491.0,2490.6,3.21382011]
[1725215540202,4.41809087,2490.9,2490.6,3.21382011]
[1725215540515,0.02622011,2491.0,2490.6,3.21382011]
[1725215540516,0.42768011,2491.0,2490.6,3.21382011]
[1725215540710,0.02622011,2491.0,2490.6,3.21382011]
[1725215540915,0.02622011,2491.0,2490.9,3.2078]
[1725215541121,0.02622011,2491.0,2490.9,9.60928]
[1725215541307,0.02622011,2491.0,2490.9,13.62368]
[1725215541508,0.3718,2492.3,2491.3,0.4014]
[1725215541707,0.40135,2491.7,2491.6,3.2078]
[1725215541911,4.57946223,2491.9,2491.6,3.2078]
[1725215542109,8.14014451,2492.2,2491.6,3.2078]
[1725215542110,0.40131,2492.0,2491.6,3.2078]
[1725215542312,0.40135,2491.7,2491.6,3.2078]
[1725215542713,0.4013,2492.0,2491.6,3.2078]
[1725215543013,4.49764002,2491.7,2491.6,3.2078]
[1725215543408,4.68743506,2492.0,2491.6,3.2078]
[1725215543608,0.00602011,2492.1,2491.6,3.2078]
[1725215543918,4.49764002,2491.9,2491.6,3.2078]
[1725215544414,0.4013,2492.0,2491.6,3.2078]
[1725215544711,4.46373624,2491.8,2491.0,4.10146]
[1725215545026,0.40731011,2492.1,2491.7,3.2078]
[1725215545027,4.44400521,2492.0,2491.7,3.2078]
[1725215545315,0.00602011,2492.1,2491.7,3.2078]
[1725215545504,0.00602011,2492.1,2492.0,3.2078]
[1725215545908,0.00602011,2492.1,2492.0,7.2206]
[1725215546105,0.00602011,2492.1,2492.0,13.2206]
[1725215546713,0.00602011,2492.1,2492.0,22.10317415]
[1725215547321,0.3856,2493.0,2492.0,21.70187415]
[1725215547521,0.3856,2493.0,2491.5,3.2078]
[1725215547522,3.7,2492.1,2491.5,3.2078]
[1725215547723,3.7,2492.1,2490.3,4.19]
[1725215547724,3.7,2491.6,2491.0,3.2078]
[1725215548021,4.37479137,2491.5,2491.0,3.2078]
[1725215548219,4.38081148,2491.5,2491.3,3.2078]
[1725215548424,0.00602011,2491.5,2491.4,4.0136]
[1725215548822,0.00602011,2491.5,2491.3,3.2078]
[1725215549213,0.00602011,2491.5,2491.4,4.0136]
[1725215549518,0.00602011,2491.5,2491.4,12.37631516]
[1725215549719,0.00602011,2491.5,2491.4,18.77131516]
[1725215550112,0.00602011,2491.5,2491.4,24.0739553]
[1725215550313,0.00602011,2491.5,2491.4,24.4753553]
[1725215550513,0.00602011,2491.5,2491.4,24.4392553]
[1725215551117,0.00602011,2491.5,2491.4,19.13661516]
[1725215551522,0.7398,2492.7,2491.4,19.13661516]
[1725215551718,0.7398,2492.7,2492.1,3.2078]
[1725215551919,0.40125,2492.4,2491.8,3.2078]
[1725215552530,0.00401336,2492.3,2491.8,3.2078]
[1725215553133,0.40129,2492.1,2491.8,3.2078]
[1725215553435,4.30571808,2492.0,2491.8,3.2078]
[1725215553731,4.30571808,2492.1,2491.8,3.2078]
[1725215554132,0.00401336,2492.3,2491.8,3.2078]
[1725215554528,4.37682425,2492.1,2491.8,3.2078]
[1725215554831,4.37682425,2492.2,2491.8,3.2078]
[1725215554832,0.40128,2492.2,2491.8,3.2078]
[1725215555226,4.94304666,2492.2,2491.8,3.2078]
[1725215555933,4.54176666,2492.2,2491.8,3.2078]
[1725215557434,4.94303666,2492.2,2491.8,3.2078]
[1725215557838,0.00401336,2492.3,2492.1,3.2078]
[1725215558928,0.00401336,2492.3,2492.1,7.2206]
[1725215559535,0.00401336,2492.3,2492.2,13.0580949]
[1725215559739,3.85,2493.6,2492.2,23.82084601]
[1725215559740,0.3867,2493.3,2492.2,23.82084601]
[1725215559951,0.3867,2493.3,2492.9,3.2078]
[1725215560243,0.3867,2493.3,2493.2,3.2078]
[1725215560244,4.66808185,2493.3,2493.2,3.2078]
[1725215560437,0.3867,2493.3,2492.8,3.2078]
[1725215560637,4.66808185,2493.3,2492.8,3.2078]
[1725215560947,4.66808185,2493.3,2492.8,3.21382011]
[1725215561244,4.28138185,2493.3,2492.8,3.21382011]
[1725215561446,0.3724,2493.6,2493.2,3.2078]
[1725215561946,4.18083772,2493.5,2493.2,3.2078]
[1725215562139,0.3867,2493.8,2493.2,3.2078]
[1725215562447,7.0578,2494.6,2493.7,3.2078]
[1725215562448,0.3811,2494.2,2493.7,3.2078]
[1725215562836,4.47246716,2494.1,2493.7,3.2078]
[1725215565048,8.48206716,2494.1,2493.4,3.2078]
[1725215565245,4.47246716,2494.1,2493.4,3.2078]
[1725215565743,4.47246716,2494.1,2493.7,3.2078]
[1725215568453,0.40105,2493.6,2493.2,3.2078]
[1725215568753,5.4991452,2493.5,2493.2,3.2078]
[1725215569054,0.7508,2493.5,2493.2,3.2078]
[1725215569446,4.35009252,2493.4,2493.2,3.2078]
[1725215570955,1.15178,2494.0,2493.3,4.0104]
[1725215571152,1.15178,2494.0,2493.2,3.2078]
[1725215571345,4.24256643,2493.9,2493.2,3.2078]
[1725215571552,6.9078,2493.8,2493.2,3.2078]
[1725215571752,3.7,2493.8,2493.2,3.2078]
[1725215571949,0.40105,2493.6,2493.2,3.2078]
[1725215572144,0.40107,2493.4,2493.2,3.2078]
[1725215572449,7.7104,2493.8,2493.2,3.2078]
[1725215572450,4.78210421,2493.3,2493.2,3.2078]
[1725215572650,5.33389125,2493.3,2493.2,3.2078]
[1725215572845,5.37034307,2493.3,2493.2,3.2078]
[1725215573050,15.54824432,2493.3,2493.2,3.2078]
[1725215573253,9.14715432,2493.3,2493.2,3.2078]
[1725215573459,8.94400125,2493.3,2493.2,3.2078]
[1725215573953,4.93280125,2493.3,2493.2,3.2078]
[1725215574252,8.18910125,2493.3,2493.2,3.2078]
[1725215574554,4.17790125,2493.3,2493.2,3.2078]
[1725215574850,4.0112,2493.3,2493.2,3.2078]
[1725215575054,4.20971395,2493.3,2493.2,3.2078]
[1725215575349,8.84055233,2493.3,2493.2,3.2078]
[1725215575653,4.63083838,2493.3,2493.2,3.2078]
[1725215576050,4.0112,2493.3,2493.2,3.2078]
[1725215576453,4.77629,2493.3,2493.2,3.2078]
[1725215576759,9.50807492,2493.3,2493.2,3.2078]
[1725215577459,9.10698492,2493.3,2493.2,3.2078]
[1725215577657,4.52831615,2493.3,2493.2,3.2078]
[1725215580456,0.3755,2493.8,2493.2,7.219]
[1725215580764,4.3541491,2493.7,2493.5,3.2078]
[1725215581262,4.5118949,2493.8,2493.5,3.2078]
[1725215581652,0.3888,2494.0,2493.5,3.2078]
[1725215581959,4.5118949,2493.9,2493.5,3.2078]
[1725215582958,4.9128949,2493.9,2493.5,3.2078]
[1725215583163,4.5118949,2493.9,2493.5,3.2078]
[1725215583562,4.9128949,2493.9,2493.5,3.2078]
[1725215583958,0.40101,2493.8,2493.5,3.2078]
[1725215584155,8.5222949,2493.9,2493.5,3.2078]
[1725215584461,4.55929985,2493.7,2493.5,3.2078]
[1725215584659,4.55929985,2493.8,2493.5,3.2078]
[1725215584864,4.55929985,2493.9,2493.5,3.2078]
[1725215585055,4.55929985,2494.2,2493.8,3.2078]
[1725215585255,0.77772,2494.4,2493.8,3.2078]
[1725215585256,4.22676561,2494.3,2493.8,3.2078]
[1725215585460,0.40098,2494.0,2493.8,3.2078]
[1725215585663,0.40099,2493.9,2493.8,3.2078]
[1725215585868,4.94095222,2493.9,2493.8,3.2078]
[1725215586066,4.41059,2493.9,2493.8,3.2078]
[1725215586463,8.65541797,2493.9,2493.8,3.2078]
[1725215587267,0.40107,2493.5,2493.4,3.2078]
[1725215587776,8.76334519,2493.5,2493.4,3.2078]
[1725215587964,8.76334519,2493.5,2493.1,3.2078]
[1725215587965,0.40111,2493.2,2493.1,3.2078]
[1725215588464,4.35523863,2493.2,2493.1,3.2078]
[1725215588870,0.40111,2493.2,2493.1,3.2078]
[1725215589074,4.75634863,2493.2,2493.1,3.2078]
[1725215589462,0.40111,2493.2,2493.1,3.2078]
[1725215589664,4.20170886,2493.2,2493.1,7.219]
[1725215589868,0.40109,2493.4,2493.1,7.219]
[1725215590065,0.40111,2493.2,2493.1,3.2078]
[1725215590262,0.59927418,2493.2,2493.1,3.2078]
[1725215590473,0.42518713,2493.2,2493.1,3.2078]
[1725215590785,0.22702295,2493.2,2493.1,3.2078]
[1725215591276,0.79634,2493.7,2493.1,7.219]
[1725215591470,0.40104,2493.6,2493.5,3.2078]
[1725215591678,4.79405816,2493.6,2493.5,3.2078]
[1725215592181,4.39301816,2493.6,2493.5,3.2078]
[1725215594071,0.401,2493.9,2493.5,3.2078]
[1725215594271,0.40102,2493.8,2493.5,3.2078]
[1725215594467,4.44757939,2493.7,2493.5,3.2078]
[1725215594678,0.371,2494.1,2493.5,3.2078]
[1725215594679,2.59723435,2494.1,2493.5,3.2078]
[1725215594886,2.99818435,2494.2,2493.8,3.2078]
[1725215595180,4.44757939,2494.0,2493.8,3.2078]
[1725215595378,4.94788737,2494.1,2493.8,3.2078]
[1725215595678,0.40096,2494.1,2493.8,3.2078]
[1725215595879,4.54692737,2494.0,2493.8,3.2078]
[1725215597575,0.40099,2493.9,2493.8,3.2078]
[1725215597965,4.73118424,2493.9,2493.8,3.2078]
[1725215599586,4.33019424,2493.9,2493.8,3.2078]
[1725215599769,4.33019424,2493.9,2493.8,7.2174]
[1725215600076,2.59723435,2494.0,2493.8,7.2174]
[1725215600286,4.04132809,2494.5,2493.9,4.4131]
[1725215600287,2.59723435,2494.3,2493.9,4.4131]
[1725215600575,2.59723435,2494.4,2494.2,3.2078]
[1725215600877,2.59723435,2494.9,2494.3,0.40092]
[1725215601077,2.59723435,2495.1,2494.8,3.2078]
[1725215601575,7.08470043,2495.1,2494.8,3.2078]
[1725215602082,4.48746608,2495.1,2494.8,3.2078]
[1725215602874,4.48746608,2495.1,2494.9,4.008]
[1725215603168,2.59723435,2495.5,2494.9,4.008]
[1725215603370,0.40079,2495.2,2494.9,3.2078]
[1725215603568,4.31451089,2495.2,2494.9,3.2078]
[1725215603770,2.99799435,2495.4,2494.9,3.2078]
[1725215603971,0.40077,2495.3,2494.9,3.2078]
[1725215604182,4.71528089,2495.3,2495.2,3.2078]
[1725215604478,2.99796435,2495.6,2495.2,3.2078]
[1725215604675,2.59723435,2495.5,2495.2,3.2078]
[1725215604871,7.07393466,2495.5,2495.2,3.2078]
[1725215605071,14.78113466,2495.5,2494.8,3.2078]
[1725215605276,0.40079,2495.2,2494.8,3.2078]
[1725215605481,2.59723435,2495.4,2494.8,3.2078]
[1725215605776,4.57476265,2495.1,2494.8,3.2078]
[1725215605969,0.60414135,2495.0,2494.8,3.2078]
[1725215606167,0.40083,2494.9,2494.8,3.2078]
[1725215606373,4.70745359,2494.9,2494.8,3.2078]
[1725215606577,4.30662359,2494.9,2494.8,3.2078]
[1725215606881,0.59786742,2494.9,2494.8,3.2078]
[1725215607073,4.95995397,2494.9,2494.8,3.2078]
[1725215607280,0.40088,2494.7,2494.5,3.2078]
[1725215607772,5.03590371,2494.6,2494.5,3.2078]
[1725215608177,7.00691435,2494.6,2494.5,3.2078]
[1725215608378,9.03820889,2494.6,2494.5,3.2078]
[1725215608679,11.83442557,2494.6,2494.5,3.2078]
[1725215608985,12.23672557,2494.6,2494.5,3.2078]
[1725215609482,5.63069122,2494.6,2494.5,3.2078]
[1725215610269,5.22981122,2494.6,2494.5,3.2078]
[1725215610476,9.63949122,2494.6,2494.5,3.2078]
[1725215611276,19.23893557,2494.6,2494.5,0.9658]
[1725215611473,1.40332,2494.2,2494.1,0.00602011]
[1725215611676,1.40332,2494.2,2493.3,0.3968]
[1725215611677,4.0155378,2494.2,2493.3,0.3968]
[1725215611878,4.21033,2493.8,2493.2,3.2078]
[1725215612091,0.40108,2493.4,2493.2,3.2078]
[1725215612277,0.40105,2493.6,2493.2,3.2078]
[1725215612478,4.5737734,2493.7,2493.5,3.2078]
[1725215612679,0.40102,2493.8,2493.5,3.2078]
[1725215612987,2.61232244,2494.0,2493.5,3.2078]
[1725215613188,2.61232244,2494.0,2493.6,0.3721]
[1725215613391,0.40097,2494.1,2493.6,0.3721]
[1725215613392,4.56120938,2493.9,2493.6,0.3721]
[1725215614594,0.40106,2493.5,2493.4,0.00602011]
[1725215614780,0.40105,2493.6,2493.4,0.00602011]
[1725215615083,4.83242934,2493.5,2493.4,0.00602011]
[1725215615292,0.40106,2493.5,2493.4,0.00602011]
[1725215615585,8.28034251,2493.5,2493.4,0.00602011]
[1725215615788,4.26994251,2493.5,2493.4,0.00602011]
[1725215616090,4.67100251,2493.5,2493.4,0.00602011]
[1725215616279,4.26994251,2493.5,2493.4,0.00602011]
[1725215616878,5.03958691,2493.6,2493.4,0.00602011]
[1725215617083,0.40104,2493.6,2493.4,0.00602011]
[1725215617482,4.53022428,2493.5,2493.4,0.00602011]
[1725215617985,4.53022428,2493.6,2493.4,0.00602011]
[1725215618189,0.40105,2493.6,2493.4,0.00602011]
[1725215618390,4.76517381,2493.6,2493.4,0.00602011]
[1725215619387,4.36412381,2493.6,2493.4,0.00602011]
[1725215619893,0.40105,2493.6,2493.4,0.00602011]
[1725215620188,4.36412381,2493.5,2493.4,0.00602011]
[1725215620586,4.0104,2493.5,2493.4,0.00602011]
[1725215620890,14.63881092,2493.5,2493.4,0.00602011]
[1725215621191,16.85007336,2493.5,2493.4,0.00602011]
[1725215621394,14.63835092,2493.5,2493.4,0.00602011]
[1725215621693,8.63835092,2493.5,2493.4,0.00602011]
[1725215622680,11.25156773,2493.5,2493.4,0.00602011]
[1725215623485,4.22735092,2493.5,2493.4,0.00602011]
[1725215624091,4.31513293,2493.6,2493.4,0.00602011]
[1725215624597,4.2156477,2493.6,2493.4,0.00602011]
[1725215626496,4.2156477,2493.6,2493.4,3.21382011]
[1725215626888,4.20627251,2493.8,2493.4,3.21382011]
[1725215627087,0.40104,2493.7,2493.4,0.00602011]
[1725215627398,4.74168557,2493.6,2493.4,0.00602011]
[1725215627598,4.74169557,2493.6,2493.4,0.00602011]
[1725215627802,7.02467681,2493.5,2493.4,0.00602011]
[1725215627987,7.88658122,2493.5,2492.4,4.19]
[1725215628305,6.31388934,2492.9,2492.2,0.3951]
[1725215628591,6.31388934,2492.9,2491.8,3.2078]
[1725215628592,2.61388934,2492.6,2491.8,3.2078]
[1725215628792,2.61388934,2492.7,2491.9,0.3951]
[1725215628996,2.61388934,2492.7,2492.1,3.21382011]
[1725215628997,4.449887,2492.5,2492.1,3.21382011]
[1725215629199,0.00602011,2492.5,2492.1,3.21382011]
[1725215629399,0.20338772,2492.4,2492.1,3.21382011]
[1725215629587,4.49814147,2492.4,2492.1,3.21382011]
[1725215629787,4.49814147,2492.4,2492.2,4.0128]